bitfinex-derivatives/quotes_BNBF0:USTF0_20241225
["timestamp","ask_amount","ask_price","bid_price","bid_amount"]
[1735088330109,2.15817425,699.38,698.21,0.28644677]
[1735088330309,2.15817425,699.37,698.21,0.28644677]
[1735088330510,2.15817425,699.36,698.21,0.28644677]
[1735088330813,2.15817425,699.35,698.21,0.28644677]
[1735088331013,2.15817425,699.34,698.21,0.28644677]
[1735088331207,2.15817425,699.33,698.21,0.28644677]
[1735088331414,2.15817425,699.32,698.21,0.28644677]
[1735088331713,2.15817425,699.31,698.21,0.28644677]
[1735088331914,2.15818809,699.3,698.21,0.28644677]
[1735088332114,2.15818809,699.29,698.21,0.28644677]
[1735088332316,2.15818855,699.28,698.21,0.28644677]
[1735088332616,2.15818855,699.27,698.21,0.28644677]
[1735088332815,2.15818855,699.26,698.21,0.28644677]
[1735088333016,2.15818855,699.25,698.21,0.28644677]
[1735088333315,2.15818855,699.24,698.21,0.28644677]
[1735088333614,2.15818855,699.23,698.21,0.28644677]
[1735088333815,2.15818855,699.22,698.21,0.28644677]
[1735088334016,2.15838104,699.21,698.21,0.28644677]
[1735088334316,2.15838104,699.2,698.21,0.28644677]
[1735088334509,2.15838104,699.19,698.21,0.28644677]
[1735088334710,2.15838104,699.18,698.21,0.28644677]
[1735088334916,0.88152575,699.17,698.21,0.28644677]
[1735088335114,2.15846485,699.16,698.21,0.28644677]
[1735088335311,2.15846485,699.15,698.21,0.28644677]
[1735088335510,2.15846485,699.14,698.21,0.28644677]
[1735088335711,1.2769391,699.13,698.21,0.28644677]
[1735088335918,1.2769391,699.12,698.21,0.28644677]
[1735088336117,0.28588173,699.59,698.21,0.28644677]
[1735088336311,2.1584699,699.58,698.21,0.28644677]
[1735088336512,2.1584699,699.57,698.21,0.28644677]
[1735088336715,2.1584699,699.56,698.21,0.28644677]
[1735088336924,2.1584699,699.55,698.21,0.28644677]
[1735088337116,0.28588173,699.59,698.21,0.28644677]
[1735088337117,2.1584699,699.54,698.21,0.28644677]
[1735088337314,2.1584699,699.53,698.21,0.28644677]
[1735088337517,2.1584699,699.52,698.21,0.28644677]
[1735088337718,2.1584699,699.51,698.21,0.28644677]
[1735088337917,1.27683896,699.5,698.21,0.28644677]
[1735088338116,1.27683896,699.49,698.21,0.28644677]
[1735088338321,2.15829473,699.48,698.21,0.28644677]
[1735088338515,2.15829473,699.47,698.21,0.28644677]
[1735088338718,2.15829473,699.46,698.21,0.28644677]
[1735088338919,2.15829473,699.45,698.21,0.28644677]
[1735088339120,2.15829473,699.44,698.21,0.28644677]
[1735088339420,2.15829473,699.43,698.21,0.28644677]
[1735088339619,2.15829473,699.42,698.21,0.28644677]
[1735088339813,1.07182841,700.31,698.21,0.28644677]
[1735088339814,2.15829473,699.41,698.21,0.28644677]
[1735088340018,2.15829473,699.4,698.21,0.28644677]
[1735088340217,2.15829473,699.39,698.21,0.28644677]
[1735088340415,2.15829473,699.38,698.21,0.28644677]
[1735088340619,2.15829473,699.37,698.21,0.28644677]
[1735088340819,1.07182841,700.33,698.21,0.28644677]
[1735088340820,2.15790863,699.36,698.21,0.28644677]
[1735088341017,2.15790863,699.35,698.21,0.28644677]
[1735088341217,1.07182841,700.32,698.21,0.28644677]
[1735088341422,0.28559188,700.3,698.21,0.28644677]
[1735088341622,2.42079731,700.29,698.21,0.28644677]
[1735088341823,2.42079731,700.28,698.21,0.28644677]
[1735088342018,0.2856082,700.26,698.21,0.28644677]
[1735088342217,2.42079731,700.25,698.21,0.28644677]
[1735088342418,0.28562043,700.23,698.21,0.28644677]
[1735088342621,2.42079731,700.22,698.21,0.28644677]
[1735088342820,1.07182841,700.26,698.21,0.28644677]
[1735088342821,0.28563267,700.2,698.21,0.28644677]
[1735088343120,2.42093466,700.19,698.21,0.28644677]
[1735088343320,0.28564491,700.17,698.21,0.28644677]
[1735088343521,2.42093466,700.16,698.21,0.28644677]
[1735088343722,2.42093466,700.15,698.21,0.28644677]
[1735088343916,1.07182841,700.25,698.21,0.28644677]
[1735088343917,2.70659181,700.14,698.21,0.28644677]
[1735088344121,0.28566531,700.12,698.21,0.28644677]
[1735088344323,2.42093466,700.11,698.21,0.28644677]
[1735088344518,1.28619409,700.49,698.21,0.28644677]
[1735088344519,0.28567755,700.09,698.21,0.28644677]
[1735088344716,2.42093466,700.08,698.21,0.28644677]
[1735088344920,2.70662037,700.07,698.21,0.28644677]
[1735088345123,2.70662445,700.06,698.21,0.28644677]
[1735088345316,2.42093466,700.05,698.21,0.28644677]
[1735088345524,2.70663262,700.04,698.21,0.28644677]
[1735088345721,2.42093466,700.03,698.21,0.28644677]
[1735088346016,0.28569796,700.04,698.21,0.28644677]
[1735088346017,0.26292154,700.02,698.21,0.28644677]
[1735088346218,2.42186178,700.01,698.21,0.28644677]
[1735088346421,2.42186178,700.0,698.21,0.28644677]
[1735088346617,2.42186178,699.99,698.21,0.28644677]
[1735088346822,2.42186178,699.98,698.21,0.28644677]
[1735088347117,2.42186178,699.97,698.21,0.28644677]
[1735088347324,2.42186178,699.96,698.21,0.28644677]
[1735088347516,2.42186178,699.95,698.21,0.28644677]
[1735088347724,2.42186178,699.94,698.21,0.28644677]
[1735088348021,2.42187193,699.93,698.21,0.28644677]
[1735088348222,2.42187193,699.92,698.21,0.28644677]
[1735088348417,2.42187193,699.91,698.21,0.28644677]
[1735088348723,2.42187193,699.9,698.21,0.28644677]
[1735088348918,2.42187193,699.89,698.21,0.28644677]
[1735088349118,0.28569796,700.04,698.21,0.28644677]
[1735088349119,1.54066121,699.88,698.21,0.28644677]
[1735088349316,2.42272992,699.87,698.21,0.28644677]
[1735088349516,2.42272992,699.86,698.21,0.28644677]
[1735088349720,2.42272992,699.85,698.21,0.28644677]
[1735088349918,2.42272992,699.84,698.21,0.28644677]
[1735088350118,2.42272992,699.83,698.21,0.28644677]
[1735088350322,2.42272992,699.82,698.21,0.28644677]
[1735088350520,2.42272992,699.81,698.21,0.28644677]
[1735088350719,2.42272992,699.8,698.21,0.28644677]
[1735088351024,1.35752637,700.04,698.21,0.28644677]
[1735088351025,2.42272992,699.79,698.21,0.28644677]
[1735088351224,2.42272992,699.78,698.21,0.28644677]
[1735088351425,2.42272992,699.77,698.21,0.28644677]
[1735088351625,2.15979823,699.76,698.21,0.28644677]
[1735088351822,2.4227421,699.75,698.21,0.28644677]
[1735088352128,2.4233598,699.74,698.21,0.28644677]
[1735088352327,2.16041593,699.73,698.21,0.28644677]
[1735088352528,2.16041593,699.72,698.21,0.28644677]
[1735088352825,2.16043337,699.71,698.21,0.28644677]
[1735088353027,2.16043337,699.7,698.21,0.28644677]
[1735088353228,2.16043337,699.69,698.21,0.28644677]
[1735088353424,2.16043337,699.68,698.21,0.28644677]
[1735088353725,2.16043337,699.67,698.21,0.28644677]
[1735088353926,2.16043337,699.66,698.21,0.28644677]
[1735088354125,2.16043337,699.65,698.21,0.28644677]
[1735088354427,2.16043337,699.64,698.21,0.28644677]
[1735088354722,2.16043337,699.63,698.21,0.28644677]
[1735088354923,2.16043337,699.62,698.21,0.28644677]
[1735088355117,1.27809347,699.61,698.21,0.28644677]
[1735088355324,2.16050183,699.6,698.21,0.28644677]
[1735088355524,2.16050183,699.59,698.21,0.28644677]
[1735088355825,2.16050183,699.58,698.21,0.28644677]
[1735088356127,2.16050183,699.57,698.21,0.28644677]
[1735088356329,2.16050183,699.56,698.21,0.28644677]
[1735088356525,2.16050183,699.55,698.21,0.28644677]
[1735088356724,2.16050183,699.54,698.21,0.28644677]
[1735088356926,2.16050183,699.53,698.21,0.28644677]
[1735088357227,2.16050183,699.52,698.21,0.28644677]
[1735088357418,2.16064554,699.51,698.21,0.28644677]
[1735088357624,2.16064554,699.5,698.21,0.28644677]
[1735088357827,2.16064554,699.49,698.21,0.28644677]
[1735088358028,2.16064554,699.48,698.21,0.28644677]
[1735088358327,2.16078257,699.47,698.21,0.28644677]
[1735088358527,2.16078257,699.46,698.21,0.28644677]
[1735088358727,2.16078257,699.45,698.21,0.28644677]
[1735088358929,2.16078257,699.44,698.21,0.28644677]
[1735088359227,2.16078257,699.43,698.21,0.28644677]
[1735088359426,2.16078257,699.42,698.21,0.28644677]
[1735088359623,2.16078257,699.41,698.21,0.28644677]
[1735088359827,2.16078257,699.4,698.21,0.28644677]
[1735088360021,2.16078257,699.39,698.21,0.28644677]
[1735088360223,2.16078257,699.38,698.21,0.28644677]
[1735088360426,2.16078257,699.37,698.21,0.28644677]
[1735088360626,2.16078257,699.36,698.21,0.28644677]
[1735088360931,2.16078257,699.35,698.21,0.28644677]
[1735088361129,1.07182841,699.95,698.21,0.28644677]
[1735088361130,2.16078257,699.34,698.21,0.28644677]
[1735088361331,2.16078257,699.33,698.21,0.28644677]
[1735088361526,2.16078257,699.32,698.21,0.28644677]
[1735088361730,2.16078257,699.31,698.21,0.28644677]
[1735088362029,2.16078257,699.3,698.21,0.28644677]
[1735088362330,2.16078257,699.29,698.21,0.28644677]
[1735088362530,2.16078257,699.28,698.21,0.28644677]
[1735088362728,2.16078257,699.27,698.21,0.28644677]
[1735088362928,2.16078257,699.26,698.21,0.28644677]
[1735088363128,2.16078257,699.25,698.21,0.28644677]
[1735088363328,2.16078257,699.24,698.21,0.28644677]
[1735088363528,2.16078257,699.23,698.21,0.28644677]
[1735088363725,2.16078257,699.22,698.21,0.28644677]
[1735088363929,1.07182841,699.97,698.21,0.28644677]
[1735088363930,2.16078257,699.21,698.21,0.28644677]
[1735088364126,2.16078257,699.2,698.21,0.28644677]
[1735088364325,2.16013336,699.19,698.21,0.28644677]
[1735088364530,2.16013336,699.18,698.21,0.28644677]
[1735088364728,0.28569796,700.04,698.21,0.28644677]
[1735088364729,2.16013336,699.17,698.21,0.28644677]
[1735088364927,2.16013336,699.16,698.21,0.28644677]
[1735088365129,2.16013336,699.15,698.21,0.28644677]
[1735088365329,2.16013336,699.14,698.21,0.28644677]
[1735088365526,2.16013336,699.13,698.21,0.28644677]
[1735088365726,2.16013336,699.12,698.21,0.28644677]
[1735088365925,2.16013336,699.11,698.21,0.28644677]
[1735088366230,2.16013336,699.1,698.21,0.28644677]
[1735088366431,2.16013336,699.09,698.21,0.28644677]
[1735088366630,2.16013336,699.08,698.21,0.28644677]
[1735088366826,2.16013336,699.07,698.21,0.28644677]
[1735088367023,2.16013336,699.06,698.21,0.28644677]
[1735088367232,0.88221956,699.05,698.21,0.28644677]
[1735088367433,2.1595889,699.04,698.21,0.28644677]
[1735088367732,2.1595889,699.03,698.21,0.28644677]
[1735088367927,2.1595889,699.02,698.21,0.28644677]
[1735088368129,2.1595889,699.01,698.21,0.28644677]
[1735088368326,2.1595889,699.0,698.21,0.28644677]
[1735088368626,2.1595889,698.99,698.21,0.28644677]
[1735088368828,2.1595889,698.98,698.21,0.28644677]
[1735088369032,2.1595889,698.97,698.21,0.28644677]
[1735088369232,2.1595889,698.96,698.21,0.28644677]
[1735088369533,2.1595889,698.95,698.21,0.28644677]
[1735088369828,2.1595889,698.94,698.21,0.28644677]
[1735088370034,1.27736934,698.93,698.21,0.28644677]
[1735088370234,0.28572244,699.98,698.21,0.28644677]
[1735088370433,2.42151274,699.97,698.21,0.28644677]
[1735088370634,0.28573469,699.95,698.21,0.28644677]
[1735088370827,1.14455196,699.94,698.21,0.28644677]
[1735088371026,0.28574694,699.92,698.21,0.28644677]
[1735088371236,2.42147201,699.91,698.21,0.28644677]
[1735088371431,0.28575919,699.89,698.21,0.28644677]
[1735088371635,2.42147201,699.88,698.21,0.28644677]
[1735088371836,2.42147201,699.87,698.21,0.28644677]
[1735088372136,1.07182841,699.83,698.21,0.28644677]
[1735088372329,2.42146314,699.82,698.21,0.28644677]
[1735088372530,2.70725499,699.81,698.21,0.28644677]
[1735088372732,2.44424342,699.8,698.21,0.28644677]
[1735088372932,2.42146825,699.79,698.21,0.28644677]
[1735088373134,2.42146825,699.78,698.21,0.28644677]
[1735088373329,2.70719013,699.77,698.21,0.28644677]
[1735088373536,2.70719421,699.76,698.21,0.28644677]
[1735088373732,2.7071983,699.75,698.21,0.28644677]
[1735088374037,2.42138194,699.74,698.21,0.28644677]
[1735088374233,2.42138194,699.73,698.21,0.28644677]
[1735088374431,2.42138194,699.72,698.21,0.28644677]
[1735088374636,2.42138194,699.71,698.21,0.28644677]
[1735088374832,2.15836117,699.7,698.21,0.28644677]
[1735088375033,2.421355,699.69,698.21,0.28644677]
[1735088375238,2.421355,699.68,698.21,0.28644677]
[1735088375438,2.421355,699.67,698.21,0.28644677]
[1735088375739,2.421355,699.66,698.21,0.28644677]
[1735088375938,2.421355,699.65,698.21,0.28644677]
[1735088376232,1.53982757,699.64,698.21,0.28644677]
[1735088376438,2.4212156,699.63,698.21,0.28644677]
[1735088376635,2.4212156,699.62,698.21,0.28644677]
[1735088376840,2.4212156,699.61,698.21,0.28644677]
[1735088377034,2.4212156,699.6,698.21,0.28644677]
[1735088377235,2.4212156,699.59,698.21,0.28644677]
[1735088377542,2.4212156,699.58,698.21,0.28644677]
[1735088377737,2.42123176,699.57,698.21,0.28644677]
[1735088377938,2.42123176,699.56,698.21,0.28644677]
[1735088378133,2.42123176,699.55,698.21,0.28644677]
[1735088378340,2.42123176,699.54,698.21,0.28644677]
[1735088378536,2.42123176,699.53,698.21,0.28644677]
[1735088378737,2.42123176,699.52,698.21,0.28644677]
[1735088378937,2.42123176,699.51,698.21,0.28644677]
[1735088379142,2.15822177,699.5,698.21,0.28644677]
[1735088379342,1.27657926,699.49,698.21,0.28644677]
[1735088379543,2.15786769,699.48,698.21,0.28644677]
[1735088379742,2.15786769,699.47,698.21,0.28644677]
[1735088380043,2.15786769,699.46,698.21,0.28644677]
[1735088380238,2.15786769,699.45,698.21,0.28644677]
[1735088380444,2.15786769,699.44,698.21,0.28644677]
[1735088380745,2.15786769,699.43,698.21,0.28644677]
[1735088380944,2.15786769,699.42,698.21,0.28644677]
[1735088381140,2.15786769,699.41,698.21,0.28644677]
[1735088381344,2.15786769,699.4,698.21,0.28644677]
[1735088381644,2.15786769,699.39,698.21,0.28644677]
[1735088381946,2.15786769,699.38,698.21,0.28644677]
[1735088382143,2.15786769,699.37,698.21,0.28644677]
[1735088382344,0.28581636,699.75,698.21,0.28644677]
[1735088382543,2.42079381,699.74,698.21,0.28644677]
[1735088382742,2.70661834,699.73,698.21,0.28644677]
[1735088382948,2.42079381,699.72,698.21,0.28644677]
[1735088383144,2.42079381,699.71,698.21,0.28644677]
[1735088383344,2.1577918,699.7,698.21,0.28644677]
[1735088383545,2.1577918,699.69,698.21,0.28644677]
[1735088383750,2.42077525,699.68,698.21,0.28644677]
[1735088383946,2.42077503,699.67,698.21,0.28644677]
[1735088384145,2.42077503,699.66,698.21,0.28644677]
[1735088384447,2.42077503,699.65,698.21,0.28644677]
[1735088384746,2.42077503,699.64,698.21,0.28644677]
[1735088384947,2.42077503,699.63,698.21,0.28644677]
[1735088385142,2.42077503,699.62,698.21,0.28644677]
[1735088385346,2.1577918,699.61,698.21,0.28644677]
[1735088385544,2.15802922,699.6,698.21,0.28644677]
[1735088385742,2.15802922,699.59,698.21,0.28644677]
[1735088385942,2.15802922,699.58,698.21,0.28644677]
[1735088386149,2.15802922,699.57,698.21,0.28644677]
[1735088386342,2.15802922,699.56,698.21,0.28644677]
[1735088386546,2.15802922,699.55,698.21,0.28644677]
[1735088386747,2.15802922,699.54,698.21,0.28644677]
[1735088387050,2.42105099,699.53,698.21,0.28644677]
[1735088387245,2.42105099,699.52,698.21,0.28644677]
[1735088387449,2.15802922,699.51,698.21,0.28644677]
[1735088387649,2.15802922,699.5,698.21,0.28644677]
[1735088387944,2.15802922,699.49,698.21,0.28644677]
[1735088388149,2.15802922,699.48,698.21,0.28644677]
[1735088388446,2.1589124,699.47,698.21,0.28644677]
[1735088388651,2.1589124,699.46,698.21,0.28644677]
[1735088388851,2.1589124,699.45,698.21,0.28644677]
[1735088389045,2.1589124,699.44,698.21,0.28644677]
[1735088389243,2.1589124,699.43,698.21,0.28644677]
[1735088389451,2.1589124,699.42,698.21,0.28644677]
[1735088389652,2.1589124,699.41,698.21,0.28644677]
[1735088389844,2.1589124,699.4,698.21,0.28644677]
[1735088390049,2.1589124,699.39,698.21,0.28644677]
[1735088390252,2.1589124,699.38,698.21,0.28644677]
[1735088390547,0.28582453,699.73,698.21,0.28644677]
[1735088390749,2.42129933,699.72,698.21,0.28644677]
[1735088390953,2.42129933,699.71,698.21,0.28644677]
[1735088391153,0.28584087,699.69,698.21,0.28644677]
[1735088391347,0.26308047,699.68,698.21,0.28644677]
[1735088391552,2.15831261,699.67,698.21,0.28644677]
[1735088391753,2.42139308,699.66,698.21,0.28644677]
[1735088391952,2.42139308,699.65,698.21,0.28644677]
[1735088392149,0.28586538,699.63,698.21,0.28644677]
[1735088392353,2.42139308,699.62,698.21,0.28644677]
[1735088392553,2.42139308,699.61,698.21,0.28644677]
[1735088392754,1.07182841,699.43,698.21,0.28644677]
[1735088393054,2.42139308,699.42,698.21,0.28644677]
[1735088393254,2.15831261,699.41,698.21,0.28644677]
[1735088393456,2.42139213,699.4,698.21,0.28644677]
[1735088393657,2.15831261,699.39,698.21,0.28644677]
[1735088393853,2.15831261,699.38,698.21,0.28644677]
[1735088394149,2.15831261,699.37,698.21,0.28644677]
[1735088394455,2.15772196,699.36,698.21,0.28644677]
[1735088394655,2.15772196,699.35,698.21,0.28644677]
[1735088394852,2.15772196,699.34,698.21,0.28644677]
[1735088395054,2.15772196,699.33,698.21,0.28644677]
[1735088395252,2.15772196,699.32,698.21,0.28644677]
[1735088395450,2.15772196,699.31,698.21,0.28644677]
[1735088395756,2.15772196,699.3,698.21,0.28644677]
[1735088395952,2.15772196,699.29,698.21,0.28644677]
[1735088396157,2.15772196,699.28,698.21,0.28644677]
[1735088396352,2.15772196,699.27,698.21,0.28644677]
[1735088396554,2.15772196,699.26,698.21,0.28644677]
[1735088396752,2.15772196,699.25,698.21,0.28644677]
[1735088396957,2.15772196,699.24,698.21,0.28644677]
[1735088397157,2.15772196,699.23,698.21,0.28644677]
[1735088397358,2.15772196,699.22,698.21,0.28644677]
[1735088397560,0.88088941,699.21,698.21,0.28644677]
[1735088397858,0.28586538,699.63,698.21,0.28644677]
[1735088398059,1.27581609,699.2,698.21,0.28644677]
[1735088398259,2.15658971,699.19,698.21,0.28644677]
[1735088398559,2.15658971,699.18,698.21,0.28644677]
[1735088398760,2.15658971,699.17,698.21,0.28644677]
[1735088398959,2.15658971,699.16,698.21,0.28644677]
[1735088399158,2.15658971,699.15,698.21,0.28644677]
[1735088399359,2.15658971,699.14,698.21,0.28644677]
[1735088399558,2.15658971,699.13,698.21,0.28644677]
[1735088399856,2.15658971,699.12,698.21,0.28644677]
[1735088400058,0.28586538,699.63,698.21,0.28644677]
[1735088400059,2.15658971,699.11,698.21,0.28644677]
[1735088400259,2.15658971,699.1,698.21,0.28644677]
[1735088400458,2.1566935,699.09,698.21,0.28644677]
[1735088400658,2.1566935,699.08,698.21,0.28644677]
[1735088400857,2.1566935,699.07,698.21,0.28644677]
[1735088401059,2.1566935,699.06,698.21,0.28644677]
[1735088401261,2.1566935,699.05,698.21,0.28644677]
[1735088401459,2.1566935,699.04,698.21,0.28644677]
[1735088401663,2.1566935,699.03,698.21,0.28644677]
[1735088401858,2.1566935,699.02,698.21,0.28644677]
[1735088402062,2.1566935,699.01,698.21,0.28644677]
[1735088402264,2.1566935,699.0,698.21,0.28644677]
[1735088402457,0.28586538,699.63,698.21,0.28644677]
[1735088402763,2.41986582,699.62,698.21,0.28644677]
[1735088402962,2.41986582,699.61,698.21,0.28644677]
[1735088403164,2.41986582,699.6,698.21,0.28644677]
[1735088403364,2.41986582,699.59,698.21,0.28644677]
[1735088403664,2.41986582,699.58,698.21,0.28644677]
[1735088403860,2.41986582,699.57,698.21,0.28644677]
[1735088404062,2.41986582,699.56,698.21,0.28644677]
[1735088404258,2.15682807,699.55,698.21,0.28644677]
[1735088404464,2.15682807,699.54,698.21,0.28644677]
[1735088404656,2.15682807,699.53,698.21,0.28644677]
[1735088404859,0.28586538,699.63,698.21,0.28644677]
[1735088404860,2.15682807,699.52,698.21,0.28644677]
[1735088405160,2.15682807,699.51,698.21,0.28644677]
[1735088405360,0.28586538,699.63,698.21,0.28644677]
[1735088405663,2.1570467,699.62,698.21,0.28644677]
[1735088405865,0.28586538,699.63,698.21,0.28644677]
[1735088405866,2.15704354,699.61,698.21,0.28644677]
[1735088406061,2.15707988,699.6,698.21,0.28644677]
[1735088406262,2.15707988,699.59,698.21,0.28644677]
[1735088406463,2.15707988,699.58,698.21,0.28644677]
[1735088406663,2.15707988,699.57,698.21,0.28644677]
[1735088406867,2.15707988,699.56,698.21,0.28644677]
[1735088407059,2.15707988,699.55,698.21,0.28644677]
[1735088407260,2.15707988,699.54,698.21,0.28644677]
[1735088407460,2.15707988,699.53,698.21,0.28644677]
[1735088407664,2.15707988,699.52,698.21,0.28644677]
[1735088407865,2.15707988,699.51,698.21,0.28644677]
[1735088408065,2.15707988,699.5,698.21,0.28644677]
[1735088408262,0.8809467,699.49,698.21,0.28644677]
[1735088408464,0.28586538,699.63,698.21,0.28644677]
[1735088408465,2.15723313,699.48,698.21,0.28644677]
[1735088408764,2.15738855,699.47,698.21,0.28644677]
[1735088408964,2.15738855,699.46,698.21,0.28644677]
[1735088409167,2.15738855,699.45,698.21,0.28644677]
[1735088409360,2.15738855,699.44,698.21,0.28644677]
[1735088409565,2.15738855,699.43,698.21,0.28644677]
[1735088409866,2.15738855,699.42,698.21,0.28644677]
[1735088410066,2.15738855,699.41,698.21,0.28644677]
[1735088410260,2.15738855,699.4,698.21,0.28644677]
[1735088410460,2.15738855,699.39,698.21,0.28644677]
[1735088410660,2.15738855,699.38,698.21,0.28644677]
[1735088410867,2.15738855,699.37,698.21,0.28644677]
[1735088411069,2.15738855,699.36,698.21,0.28644677]
[1735088411263,0.28586538,699.63,698.21,0.28644677]
[1735088411467,2.15782128,699.62,698.21,0.28644677]
[1735088411669,2.15782128,699.61,698.21,0.28644677]
[1735088411864,2.15782128,699.6,698.21,0.28644677]
[1735088412065,0.28586538,699.63,698.21,0.28644677]
[1735088412066,2.15782128,699.59,698.21,0.28644677]
[1735088412264,2.15782128,699.58,698.21,0.28644677]
[1735088412461,2.15782128,699.57,698.21,0.28644677]
[1735088412665,2.15782128,699.56,698.21,0.28644677]
[1735088412870,2.15782128,699.55,698.21,0.28644677]
[1735088413167,2.15782128,699.54,698.21,0.28644677]
[1735088413368,2.15782128,699.53,698.21,0.28644677]
[1735088413562,2.15782128,699.52,698.21,0.28644677]
[1735088413766,2.15782128,699.51,698.21,0.28644677]
[1735088413967,2.15782128,699.5,698.21,0.28644677]
[1735088414267,2.15785307,699.49,698.21,0.28644677]
[1735088414467,2.15785307,699.48,698.21,0.28644677]
[1735088414667,2.15790934,699.47,698.21,0.28644677]
[1735088414865,2.15790934,699.46,698.21,0.28644677]
[1735088415068,2.15790934,699.45,698.21,0.28644677]
[1735088415367,2.15790934,699.44,698.21,0.28644677]
[1735088415562,2.15790934,699.43,698.21,0.28644677]
[1735088415768,2.15790934,699.42,698.21,0.28644677]
[1735088416069,2.15790934,699.41,698.21,0.28644677]
[1735088416268,2.15790934,699.4,698.21,0.28644677]
[1735088416470,2.15790934,699.39,698.21,0.28644677]
[1735088416772,2.15790934,699.38,698.21,0.28644677]
[1735088417069,2.15790934,699.37,698.21,0.28644677]
[1735088417268,2.1577738,699.36,698.21,0.28644677]
[1735088417465,2.1577738,699.35,698.21,0.28644677]
[1735088417664,2.15777308,699.34,698.21,0.28644677]
[1735088417868,2.15777308,699.33,698.21,0.28644677]
[1735088418069,2.15777308,699.32,698.21,0.28644677]
[1735088418265,2.15777308,699.31,698.21,0.28644677]
[1735088418469,2.15777308,699.3,698.21,0.28644677]
[1735088418672,2.15777308,699.29,698.21,0.28644677]
[1735088418864,2.15777308,699.28,698.21,0.28644677]
[1735088419065,2.15777308,699.27,698.21,0.28644677]
[1735088419266,2.15777308,699.26,698.21,0.28644677]
[1735088419463,2.15777308,699.25,698.21,0.28644677]
[1735088419666,1.27653095,699.24,698.21,0.28644677]
[1735088419871,0.28586538,699.63,698.21,0.28644677]
[1735088420074,2.15708774,699.62,698.21,0.28644677]
[1735088420269,2.15703309,699.61,698.21,0.28644677]
[1735088420465,0.8809365,699.6,698.21,0.28644677]
[1735088420670,2.15703309,699.59,698.21,0.28644677]
[1735088420872,2.15703309,699.58,698.21,0.28644677]
[1735088421072,2.15703309,699.57,698.21,0.28644677]
[1735088421273,2.15703309,699.56,698.21,0.28644677]
[1735088421574,2.15703309,699.55,698.21,0.28644677]
[1735088421772,2.15703309,699.54,698.21,0.28644677]
[1735088421973,2.15703309,699.53,698.21,0.28644677]
[1735088422171,2.15703309,699.52,698.21,0.28644677]
[1735088422366,2.15703309,699.51,698.21,0.28644677]
[1735088422570,2.15703309,699.5,698.21,0.28644677]
[1735088422766,2.15703309,699.49,698.21,0.28644677]
[1735088422972,2.15703309,699.48,698.21,0.28644677]
[1735088423266,1.27544829,699.47,698.21,0.28644677]
[1735088423468,2.15593943,699.46,698.21,0.28644677]
[1735088423667,1.07182841,700.53,698.21,0.28644677]
[1735088423668,0.64835143,700.52,698.21,0.28644677]
[1735088423874,0.28554703,700.41,698.21,0.28644677]
[1735088424075,2.41857269,700.4,698.21,0.28644677]
[1735088424275,2.41857269,700.39,698.21,0.28644677]
[1735088424476,2.41857269,700.38,698.21,0.28644677]
[1735088424775,2.41857269,700.37,698.21,0.28644677]
[1735088424974,2.41857269,700.36,698.21,0.28644677]
[1735088425169,2.41857269,700.35,698.21,0.28644677]
[1735088425373,1.53819707,700.34,698.21,0.28644677]
[1735088425572,2.41848056,700.33,698.21,0.28644677]
[1735088425776,2.41848056,700.32,698.21,0.28644677]
[1735088425979,2.41848056,700.31,698.21,0.28644677]
[1735088426173,2.41848056,700.3,698.21,0.28644677]
[1735088426478,2.41848056,700.29,698.21,0.28644677]
[1735088426672,2.41848056,700.28,698.21,0.28644677]
[1735088426877,2.41848056,700.27,698.21,0.28644677]
[1735088427071,2.41848056,700.26,698.21,0.28644677]
[1735088427276,2.41848056,700.25,698.21,0.28644677]
[1735088427471,2.41848056,700.24,698.21,0.28644677]
[1735088427677,2.41848056,700.23,698.21,0.28644677]
[1735088427877,2.41848056,700.22,698.21,0.28644677]
[1735088428073,2.41848056,700.21,698.21,0.28644677]
[1735088428273,2.41848056,700.2,698.21,0.28644677]
[1735088428471,2.41848056,700.19,698.21,0.28644677]
[1735088428676,2.15556489,700.18,698.21,0.28644677]
[1735088428874,2.41848774,700.17,698.21,0.28644677]
[1735088429074,2.41848774,700.16,698.21,0.28644677]
[1735088429278,2.41805678,700.15,698.21,0.28644677]
[1735088429478,2.15513393,700.14,698.21,0.28644677]
[1735088429675,2.41805485,700.13,698.21,0.28644677]
[1735088429880,2.41805485,700.12,698.21,0.28644677]
[1735088430082,2.41805485,700.11,698.21,0.28644677]
[1735088430274,2.41805485,700.1,698.21,0.28644677]
[1735088430478,2.41805485,700.09,698.21,0.28644677]
[1735088430676,2.41805485,700.08,698.21,0.28644677]
[1735088430879,2.41805485,700.07,698.21,0.28644677]
[1735088431083,2.41805485,700.06,698.21,0.28644677]
[1735088431277,2.41805485,700.05,698.21,0.28644677]
[1735088431485,2.41805485,700.04,698.21,0.28644677]
[1735088431683,2.41804958,700.03,698.21,0.28644677]
[1735088431883,2.41804958,700.02,698.21,0.28644677]
[1735088432185,2.41804958,700.01,698.21,0.28644677]
[1735088432384,2.41804958,700.0,698.21,0.28644677]
[1735088432685,2.41804958,699.99,698.21,0.28644677]
[1735088432885,2.41804958,699.98,698.21,0.28644677]
[1735088433187,2.41804958,699.97,698.21,0.28644677]
[1735088433383,2.41804958,699.96,698.21,0.28644677]
[1735088433583,2.41804958,699.95,698.21,0.28644677]